bitfinex/quotes_ETHUSD_20250623
["timestamp","ask_amount","ask_price","bid_price","bid_amount"]
[1750645750905,0.1224,2247.3,2247.0,4.79]
[1750645752220,0.0657,2247.3,2247.0,4.79]
[1750645754322,0.0657,2247.3,2247.0,4.852]
[1750645754822,0.0657,2247.3,2247.0,4.79]
[1750645755695,0.0657,2247.3,2247.1,4.79]
[1750645755897,0.1228,2247.3,2247.1,4.79]
[1750645756434,0.0657,2247.3,2247.1,4.79]
[1750645758500,0.2243986,2247.4,2247.1,5.2752]
[1750645758826,0.2243986,2247.4,2247.1,5.3372]
[1750645759134,0.2243986,2247.4,2247.3,0.062]
[1750645759610,0.2243986,2247.4,2247.1,6.0606]
[1750645759816,0.2243986,2247.4,2247.2,0.062]
[1750645760496,0.2243986,2247.4,2247.1,5.2752]
[1750645760696,0.2243986,2247.4,2247.1,5.3372]
[1750645761325,0.1228,2247.3,2247.1,4.79]
[1750645761498,0.0571,2247.2,2247.1,4.79]
[1750645762225,0.0657,2247.3,2247.1,4.79]
[1750645762417,0.1228,2247.3,2247.1,4.79]
[1750645762904,0.0657,2247.3,2247.1,4.79]
[1750645763423,0.1228,2247.3,2247.1,4.79]
[1750645763629,0.0571,2247.1,2246.9,4.79]
[1750645763832,1.961,2247.0,2246.6,0.50505122]
[1750645764015,1.961,2247.0,2246.6,0.59150512]
[1750645764729,2.0267,2247.2,2246.8,0.062]
[1750645764936,0.41701653,2247.1,2246.9,4.79]
[1750645765233,2.0267,2247.2,2246.9,4.79]
[1750645766902,0.41690539,2247.1,2246.9,4.79]
[1750645767135,2.0838,2247.2,2246.9,4.79]
[1750645767338,0.41691669,2247.1,2246.9,4.79]
[1750645767549,0.0571,2247.1,2246.9,4.79]
[1750645767848,0.41692532,2247.0,2246.9,4.79]
[1750645768205,0.47417248,2247.0,2246.9,4.79]
[1750645768804,0.41707248,2247.0,2246.9,4.79]
[1750645769315,0.41685264,2247.0,2246.9,4.79]
[1750645770619,0.41685264,2247.0,2246.6,5.22650934]
[1750645770938,0.0571,2247.1,2246.6,5.45938093]
[1750645771140,0.41687466,2247.0,2246.6,5.39738093]
[1750645771321,0.0571,2247.1,2246.6,5.39738093]
[1750645771638,0.0657,2246.8,2246.6,4.79]
[1750645772633,1.961,2246.7,2246.6,4.79]
[1750645775113,1.961,2246.7,2246.6,4.852]
[1750645775927,10.698,2247.3,2246.6,5.645]
[1750645776142,0.41651007,2247.2,2246.8,0.062]
[1750645776318,12.659,2247.3,2246.7,5.39900335]
[1750645776514,0.41649219,2247.2,2246.7,5.39900335]
[1750645776735,12.659,2247.3,2246.7,5.39900335]
[1750645776933,0.4164926,2247.2,2246.8,0.062]
[1750645777131,12.659,2247.3,2246.9,0.062]
[1750645777420,0.41649353,2247.2,2246.9,0.062]
[1750645777653,12.659,2247.3,2246.9,0.062]
[1750645777954,0.41649746,2247.2,2246.8,0.62540034]
[1750645778152,0.4821953,2247.1,2246.7,4.79]
[1750645778451,0.0657,2247.1,2246.7,4.79]
[1750645778648,0.0657,2247.1,2246.7,5.3545]
[1750645778961,0.0657,2247.1,2246.7,5.4165]
[1750645779420,0.0657,2247.1,2246.8,4.79]
[1750645780021,0.1228,2247.1,2246.8,4.79]
[1750645781051,0.0657,2247.1,2246.8,4.79]
[1750645781253,0.1228,2247.1,2246.5,4.79]
[1750645781552,0.41669052,2247.0,2246.6,0.53066062]
[1750645781855,7.254,2246.9,2246.6,0.53066062]
[1750645782455,7.254,2246.9,2246.5,4.79]
[1750645782656,2.0181,2246.8,2246.5,4.79]
[1750645782857,0.0657,2246.7,2246.4,4.79]
[1750645783057,0.41675163,2246.6,2246.4,4.79]
[1750645783237,0.0657,2246.7,2246.4,4.79]
[1750645783433,0.47907461,2246.6,2246.4,4.79]
[1750645783657,0.47907087,2246.5,2246.1,0.45362983]
[1750645783840,0.0657,2246.7,2246.1,0.51472983]
[1750645784160,0.47908607,2246.6,2246.1,0.51472983]
[1750645784336,0.41678607,2246.5,2246.1,0.51472983]
[1750645784657,0.0657,2246.7,2246.1,0.0611]
[1750645784959,0.41654148,2246.6,2246.1,0.0611]
[1750645785256,9.2627,2246.7,2246.1,0.0611]
[1750645785458,0.41654315,2246.6,2246.0,0.04452374]
[1750645785670,9.2627,2246.7,2246.1,0.0611]
[1750645785957,9.197,2246.7,2246.2,0.7981]
[1750645786658,9.197,2246.7,2246.3,0.0611]
[1750645786879,9.197,2246.7,2246.2,0.7981]
[1750645787161,0.41653905,2246.6,2246.3,0.0611]
[1750645787333,9.197,2246.7,2246.3,0.0611]
[1750645787334,9.197,2246.7,2246.3,0.56492]
[1750645787538,9.197,2246.7,2246.4,0.0611]
[1750645788133,1.944,2246.8,2246.4,0.0611]
[1750645788743,1.944,2246.8,2246.5,0.0611]
[1750645788942,1.944,2246.8,2246.6,4.79]
[1750645789239,1.944,2246.8,2246.6,4.8511]
[1750645789662,1.944,2246.8,2246.6,4.79]
[1750645791865,0.0623,2246.6,2246.4,4.79]
[1750645792051,0.41686753,2246.5,2246.4,4.79]
[1750645796290,0.41688747,2246.5,2246.4,4.79]
[1750645797250,0.0657,2246.7,2246.3,4.79]
[1750645797487,0.4168864,2246.6,2246.4,0.8934]
[1750645797685,9.198,2246.5,2246.3,4.79]
[1750645797839,9.198,2246.5,2246.3,4.8511]
[1750645800064,9.198,2246.5,2246.3,4.79]
[1750645800442,0.41682014,2246.4,2246.3,4.79]
[1750645800642,9.198,2246.5,2246.3,4.79]
[1750645801267,0.4168068,2246.4,2246.3,4.79]
[1750645801752,9.2603,2246.5,2246.3,4.79]
[1750645802475,9.198,2246.5,2246.3,4.79]
[1750645803039,9.198,2246.5,2246.2,0.0611]
[1750645803880,10.12437,2246.5,2246.1,4.79]
[1750645804176,0.128,2246.3,2246.1,4.79]
[1750645804376,0.41666877,2246.2,2245.9,4.79]
[1750645804681,0.0623,2246.2,2245.9,4.79]
[1750645804882,0.41668355,2246.1,2245.9,4.79]
[1750645805083,1.945,2246.0,2245.9,4.79]
[1750645805880,1.945,2246.0,2245.9,4.8511]
[1750645806065,1.945,2246.0,2245.9,5.32682721]
[1750645807042,1.945,2246.0,2245.9,4.79]
[1750645807246,1.945,2246.0,2245.9,4.8511]
[1750645807698,1.945,2246.0,2245.9,4.79]
[1750645811575,1.945,2246.0,2245.9,14.79]
[1750645812383,1.945,2246.0,2245.9,14.8511]
[1750645812682,1.945,2246.0,2245.9,14.79]
[1750645814685,1.945,2246.0,2245.9,4.8469]
[1750645815387,1.945,2246.0,2245.9,4.79]
[1750645816154,1.945,2246.0,2245.9,4.8469]
[1750645816352,1.945,2246.0,2245.9,6.03911847]
[1750645816599,0.0657,2246.6,2246.0,0.7924]
[1750645816887,1.942,2246.7,2246.6,0.0569]
[1750645817048,1.942,2246.8,2246.6,4.79]
[1750645819376,1.942,2246.7,2246.6,5.5817]
[1750645819580,1.942,2246.7,2246.6,5.6386]
[1750645820393,1.942,2246.9,2246.7,0.0569]
[1750645820758,1.942,2246.9,2246.6,5.5817]
[1750645820759,1.942,2246.9,2246.8,4.8469]
[1750645821291,2.35848695,2246.9,2246.8,4.8469]
[1750645821594,2.35848695,2246.9,2246.8,4.79]
[1750645821894,9.61148695,2246.9,2246.8,4.79]
[1750645822088,9.195,2246.9,2246.8,4.79]
[1750645822294,9.61132423,2246.9,2246.8,4.79]
[1750645822662,9.61132423,2246.9,2246.8,4.8469]
[1750645822889,9.611326,2246.9,2246.8,4.8469]
[1750645823084,9.61132139,2246.9,2246.8,4.8469]
[1750645823398,9.195,2246.9,2246.8,4.8469]
[1750645824598,9.195,2246.9,2246.8,4.79]
[1750645826072,9.195,2246.9,2246.8,4.8469]
[1750645826399,10.702,2247.3,2247.0,0.7696]
[1750645826597,12.35811976,2247.2,2247.1,4.79]
[1750645826770,19.610116,2247.2,2247.1,4.79]
[1750645828689,10.702,2247.3,2247.2,0.0569]
[1750645828891,19.896,2247.3,2247.2,0.0569]
[1750645829091,19.896,2247.3,2247.2,0.8776]
[1750645829697,19.896,2247.3,2247.2,5.6676]
[1750645829996,19.896,2247.3,2247.2,0.8776]
[1750645830569,12.644,2247.3,2247.2,0.8776]
[1750645830896,19.896,2247.3,2247.2,0.8776]
[1750645831569,19.896,2247.3,2247.0,1.24587594]
[1750645831766,1.942,2247.3,2247.1,0.0569]
[1750645831974,9.193,2247.3,2247.2,7.13218471]
[1750645832177,9.193,2247.3,2247.2,0.0569]
[1750645833118,9.193,2247.3,2247.0,2.26203085]
[1750645833315,9.193,2247.3,2247.0,0.0569]
[1750645833602,9.193,2247.3,2246.9,0.0569]
[1750645834058,9.3151,2247.3,2246.8,0.8134]
[1750645834175,9.3151,2247.3,2246.7,0.43830951]
[1750645834373,10.26904986,2247.3,2246.6,0.8328]
[1750645834682,9.3151,2247.3,2246.6,0.8897]
[1750645835373,9.2587,2247.3,2246.6,0.8897]
[1750645835575,0.0564,2247.2,2246.6,0.8897]
[1750645837709,0.0564,2247.1,2246.4,0.7858]
[1750645837887,0.0657,2247.0,2246.4,0.7858]
[1750645838672,0.0657,2247.0,2246.5,0.0569]
[1750645839295,0.0657,2247.0,2246.4,0.7858]
[1750645839507,0.0657,2247.0,2246.5,0.0569]
[1750645839694,0.0657,2247.0,2246.5,0.04451196]
[1750645839999,0.0657,2247.0,2246.6,0.0569]
[1750645840201,0.0657,2247.0,2246.5,0.0569]
[1750645840405,0.0657,2247.0,2246.4,0.7858]
[1750645840584,0.0657,2247.0,2246.4,1.22411927]
[1750645840985,0.0657,2247.0,2246.5,0.0569]
[1750645841478,0.0657,2247.0,2246.4,1.22411927]
[1750645841879,0.0657,2247.0,2246.5,0.0569]
[1750645842184,0.0657,2247.0,2246.4,1.22411927]
[1750645842391,0.0657,2247.0,2246.5,0.04450921]
[1750645842597,0.0657,2247.0,2246.6,0.0569]
[1750645842911,0.0657,2247.0,2246.4,1.22411927]
[1750645843281,0.0657,2247.0,2246.5,0.0592]
[1750645843476,0.0657,2247.0,2246.4,1.22411927]
[1750645843680,0.0657,2247.0,2246.5,0.0592]
[1750645845213,0.41690158,2246.9,2246.5,0.0592]
[1750645845395,9.192,2246.8,2246.5,0.0592]
[1750645846888,0.2243986,2247.4,2246.8,0.79]
[1750645847210,0.2243986,2247.4,2247.1,0.0592]
[1750645848517,0.2243986,2247.4,2247.1,0.45196203]
[1750645848710,0.2243986,2247.4,2247.1,0.0592]
[1750645850094,0.2243986,2247.4,2247.0,11.15980055]
[1750645850399,0.2243986,2247.4,2247.2,0.0592]
[1750645852934,0.2243986,2247.4,2247.1,11.66942402]
[1750645852935,0.2243986,2247.4,2247.1,1.66942402]
[1750645853232,1.94,2247.3,2247.0,0.0592]
[1750645854506,1.94,2247.3,2246.8,10.8221]
[1750645854507,1.94,2247.3,2246.9,0.0592]
[1750645855221,1.94,2247.3,2246.9,0.50184705]
[1750645855428,1.94,2247.3,2247.0,0.0592]
[1750645855639,1.94,2247.3,2246.9,0.0592]
[1750645855844,1.94,2247.3,2246.9,1.12511005]
[1750645856047,1.94,2247.3,2247.0,0.0592]
[1750645856243,1.94,2247.3,2246.9,1.12511005]
[1750645857554,0.2243986,2247.4,2247.1,0.0592]
[1750645857917,0.2243986,2247.4,2247.2,0.0592]
[1750645858159,0.2243986,2247.4,2247.1,0.04449617]
[1750645858343,0.2243986,2247.4,2247.2,0.0592]
[1750645860584,0.2243986,2247.4,2247.1,1.25703105]
[1750645860739,0.2900986,2247.4,2247.0,0.0592]
[1750645862002,0.2243986,2247.4,2247.0,0.0592]
[1750645862298,0.2243986,2247.4,2247.3,7.12532579]
[1750645863284,0.2243986,2247.4,2247.1,0.7531]
[1750645863285,0.2243986,2247.4,2247.1,0.8123]
[1750645863471,0.2243986,2247.4,2247.1,0.7531]
[1750645863679,0.2243986,2247.4,2247.2,0.0592]
[1750645864466,0.2243986,2247.4,2247.1,0.7531]
[1750645864792,0.2243986,2247.4,2247.2,0.0592]
[1750645865189,0.2243986,2247.4,2247.1,0.7531]
[1750645865356,2.0047,2247.3,2246.9,0.43801246]
[1750645865561,2.0631,2247.3,2246.7,0.8919]
[1750645865756,2.0631,2247.3,2246.7,2.01752925]
[1750645865988,2.0631,2247.3,2246.7,0.8919]
[1750645867812,0.0584,2247.2,2246.5,0.8211]
[1750645867990,0.1241,2247.1,2246.7,0.44459003]
[1750645868175,0.1241,2247.1,2246.5,0.8803]
[1750645868698,0.1241,2247.1,2246.5,0.0592]
[1750645869311,0.0657,2247.1,2246.5,0.0592]
[1750645870693,0.1241,2247.1,2246.5,0.0592]
[1750645871764,0.1241,2247.1,2246.5,0.50436945]
[1750645872465,0.1241,2247.1,2246.5,1.64136727]
[1750645873660,0.0657,2246.8,2245.7,0.7802]
[1750645873868,0.1249,2246.5,2245.7,0.8384]
[1750645874064,7.66481061,2246.4,2245.7,0.8384]
[1750645874293,0.41681061,2246.3,2245.7,0.8384]
[1750645874487,1.939,2246.2,2245.8,0.0582]
[1750645874686,1.939,2246.2,2245.9,0.0582]
[1750645874993,0.0657,2246.1,2245.7,0.8384]
[1750645875194,0.0657,2246.1,2245.7,0.0582]
[1750645875699,1.939,2246.0,2245.7,0.0582]
[1750645878670,1.939,2246.0,2245.6,0.44564558]
[1750645878869,1.939,2246.0,2245.5,0.7802]
[1750645879171,1.939,2246.0,2245.6,1.08247273]
[1750645880003,1.939,2246.0,2245.7,0.0582]
[1750645880170,1.939,2246.0,2245.5,0.82472725]
[1750645880171,1.939,2246.0,2245.5,0.7802]
[1750645880370,1.939,2246.0,2245.6,0.0582]
[1750645880880,8.3381793,2246.7,2245.6,10.10272724]
[1750645881082,19.189,2246.6,2245.8,0.0582]
[1750645881300,19.189,2246.6,2245.9,0.7595]
[1750645881501,19.189,2246.6,2246.0,0.0582]
[1750645884024,19.2017,2246.6,2245.7,2.92904483]
[1750645884239,19.189,2246.6,2245.9,0.0582]
[1750645885531,9.189,2246.6,2246.0,0.7953]
[1750645885831,10.697,2246.8,2246.1,0.0582]
[1750645886033,1.939,2246.5,2246.3,0.0582]
[1750645886220,10.697,2246.8,2246.2,7.07182995]
[1750645886426,10.697,2246.8,2246.4,0.0582]
[1750645886610,9.189,2246.7,2246.3,1.55281558]
[1750645886812,1.939,2246.6,2246.4,0.0582]
[1750645887144,1.939,2246.7,2246.3,1.508303]
[1750645887329,1.939,2246.7,2246.4,0.0582]
[1750645887959,9.189,2246.7,2246.4,0.0582]
[1750645888145,1.939,2246.7,2246.4,0.0582]
[1750645888444,7.25,2246.6,2246.4,0.0582]
[1750645891405,7.25,2246.6,2246.2,0.0582]
[1750645891842,7.25,2246.6,2246.3,4.79]
[1750645892974,7.25,2246.6,2246.3,4.8482]
[1750645893687,7.25,2246.6,2246.3,4.79]
[1750645893837,7.25,2246.6,2246.4,0.0582]
[1750645896051,7.25,2246.6,2246.3,4.79]
[1750645896465,7.25,2246.6,2246.3,4.8482]
[1750645897707,7.25,2246.6,2246.4,4.79]
[1750645898407,10.0,2247.2,2246.4,4.8482]
[1750645898604,10.0,2247.0,2246.6,0.0582]
[1750645898825,0.41606022,2246.9,2246.5,0.8759]
[1750645899107,0.41606022,2246.8,2246.5,0.0582]
[1750645899338,10.701,2247.3,2246.6,4.8482]
[1750645899460,9.188,2247.0,2246.6,4.79]
[1750645899786,7.249,2246.9,2246.6,4.8482]
[1750645900194,7.249,2246.9,2246.6,4.79]
[1750645900360,7.249,2246.9,2246.6,4.8482]
[1750645900562,7.249,2246.9,2246.6,4.79]
[1750645900761,7.249,2246.9,2246.7,0.0582]
[1750645902998,10.0,2247.2,2246.7,0.8691]
[1750645903201,7.249,2246.8,2246.7,0.8691]
[1750645903702,7.249,2246.8,2246.7,5.6591]
[1750645903909,7.249,2246.8,2246.7,6.22501]
[1750645905078,7.249,2246.8,2246.7,6.22541]
[1750645905595,1.939,2246.9,2246.8,0.0586]
[1750645905784,9.188,2246.9,2246.8,0.0586]
[1750645906193,1.939,2246.9,2246.8,0.0586]
[1750645906396,7.248,2247.2,2247.0,0.8264]
[1750645906602,7.248,2247.2,2246.8,5.45704631]
[1750645906603,7.248,2247.2,2246.8,4.79]
[1750645906803,0.41647931,2247.1,2246.8,4.79]
[1750645907012,7.248,2247.2,2246.8,4.79]
[1750645907225,2.40498111,2247.1,2246.6,4.79]
[1750645907521,0.41638111,2247.0,2246.6,4.79]
[1750645907694,0.41638111,2246.9,2246.0,0.0586]
[1750645907888,2.35338111,2246.8,2246.1,4.79]
[1750645908189,7.66438111,2246.7,2246.1,4.79]
[1750645908394,1.26234494,2246.6,2246.1,4.79]
[1750645908614,0.41650095,2246.5,2246.1,4.79]
[1750645908788,0.41650095,2246.4,2246.1,4.79]
[1750645908989,0.84584399,2246.6,2246.2,4.79]
[1750645908990,1.937,2246.3,2246.2,4.79]
[1750645909717,1.937,2246.3,2246.2,4.8486]
[1750645909923,9.186,2246.3,2246.2,5.6022]
[1750645910217,9.186,2246.3,2246.2,4.79]
[1750645910816,9.186,2246.3,2246.2,4.8486]
[1750645912600,7.248,2246.5,2246.4,0.0586]
[1750645912926,7.249,2246.8,2246.5,0.0586]
[1750645913218,7.249,2246.7,2246.5,0.0586]
[1750645913383,7.249,2246.7,2246.6,4.79]
[1750645913904,7.66604615,2246.7,2246.6,4.79]
[1750645914517,7.66604615,2246.7,2246.6,4.8486]
[1750645914716,7.66604615,2246.7,2246.6,4.79]
[1750645915918,7.66604747,2246.7,2246.6,4.79]
[1750645916211,7.249,2246.7,2246.6,4.79]
[1750645916383,7.66605232,2246.7,2246.6,4.79]
[1750645916579,0.41705232,2246.7,2246.6,4.79]
[1750645916810,7.66505232,2246.7,2246.6,4.79]
[1750645917519,8.62529284,2246.7,2246.6,4.79]
[1750645918329,0.41713,2246.7,2246.3,4.79]
[1750645918483,0.41713,2246.7,2246.5,0.0586]
[1750645918484,0.41713,2246.6,2246.5,0.0586]
[1750645918990,0.41713,2246.6,2246.3,4.8486]
[1750645919317,0.41714817,2246.5,2246.3,4.79]
[1750645919521,7.248,2246.7,2246.3,4.8486]
[1750645919697,0.41715552,2246.6,2246.3,4.79]
[1750645919894,0.41715552,2246.5,2246.4,0.0586]
[1750645920100,0.41711511,2246.5,2246.4,0.0586]
[1750645920426,7.248,2246.7,2246.4,0.0586]
[1750645920600,0.41711107,2246.6,2246.3,4.79]
[1750645920801,7.248,2246.7,2246.3,4.79]
[1750645921124,0.41711306,2246.6,2246.4,0.0586]
[1750645921323,7.248,2246.7,2246.4,0.0586]
[1750645921521,0.41711359,2246.6,2246.4,0.0586]
[1750645921735,7.248,2246.7,2246.5,7.07451834]
[1750645921942,7.248,2246.7,2246.6,0.0586]
[1750645922240,7.66513208,2246.7,2246.6,0.0586]
[1750645922764,7.66512765,2246.7,2246.6,0.0586]
[1750645923042,2.35410243,2246.7,2246.6,0.8329]
[1750645923216,1.937,2246.7,2246.6,1.68033983]
[1750645924325,1.937,2246.7,2246.6,6.47033983]
[1750645925003,1.937,2246.7,2246.6,6.51484842]
[1750645925221,1.937,2246.7,2246.6,6.47033983]
[1750645926341,1.937,2246.7,2246.6,4.8486]
[1750645926950,1.937,2246.7,2246.6,4.79]
[1750645927628,1.937,2246.7,2246.6,4.8486]
[1750645930233,1.937,2246.7,2246.6,5.674]
[1750645932950,10.701,2247.3,2246.7,0.0586]
[1750645933259,0.41700366,2247.2,2247.0,0.0617]
[1750645933456,19.885,2247.3,2247.1,4.79]
[1750645933750,0.41701534,2247.2,2247.1,4.8517]
[1750645933917,1.937,2247.3,2247.1,0.0617]
[1750645934116,1.937,2247.3,2247.0,0.0617]
[1750645934312,1.937,2247.3,2246.9,0.86370224]
[1750645934636,1.937,2247.3,2247.1,0.8192]
[1750645934826,1.937,2247.3,2247.2,0.0617]
[1750645936126,1.937,2247.3,2247.1,0.8636976]
[1750645936344,1.937,2247.3,2247.2,0.0617]
[1750645936839,0.1870986,2247.4,2247.2,0.0617]
[1750645937047,0.1870986,2247.4,2247.3,0.04449347]
[1750645937236,0.1870986,2247.4,2247.3,0.10619347]
[1750645937433,0.1870986,2247.4,2247.3,5.6223]
[1750645937626,0.1870986,2247.4,2247.3,7.22167667]
[1750645938540,0.1870986,2247.4,2247.3,7.2661658]
[1750645938748,0.1870986,2247.4,2247.3,7.22167667]
[1750645940947,1.935,2247.7,2247.6,0.8686]
[1750645941123,1.935,2247.7,2247.6,5.4715014]
[1750645944420,7.245,2248.0,2247.6,5.4715014]
[1750645945024,7.245,2248.0,2247.7,4.6646014]
[1750645945425,10.699,2248.1,2247.7,4.6646014]
[1750645945636,7.243,2247.9,2247.7,4.6646014]
[1750645945870,7.243,2247.9,2247.7,4.6029014]
[1750645946055,7.243,2247.9,2247.8,0.0617]
[1750645947380,10.699,2248.1,2247.8,0.54715014]
[1750645947546,17.942,2248.1,2247.8,5.15005154]
[1750645948066,17.942,2248.1,2247.9,0.0617]
[1750645948626,17.942,2248.1,2247.8,5.15005154]
[1750645949131,17.942,2248.1,2247.9,0.0617]
[1750645951060,17.942,2248.1,2248.0,4.6029014]
[1750645951741,10.699,2248.1,2248.0,5.4461014]
[1750645951928,17.941,2248.1,2248.0,5.99071154]
[1750645952131,1.935,2248.2,2248.0,5.99071154]
[1750645952330,1.935,2248.2,2248.1,4.6029014]
[1750645952577,9.177,2248.2,2248.1,4.6029014]
[1750645953177,9.177,2248.2,2248.1,4.6646014]
[1750645955272,1.935,2248.2,2248.1,6.39706161]
[1750645955475,9.176,2248.2,2248.1,5.61986161]
[1750645955686,9.176,2248.2,2248.1,5.55816161]
[1750645957242,9.176,2248.2,2248.1,5.12382255]
[1750645958249,9.176,2248.2,2248.1,5.18552255]
[1750645961607,1.934,2248.3,2248.2,0.7743]
[1750645961809,9.174,2248.3,2248.2,0.7743]
[1750645962093,1.934,2248.3,2248.2,9.29874514]
[1750645963497,7.24,2248.5,2248.2,9.23704514]
[1750645963861,7.24,2248.5,2248.3,0.0608]
[1750645964361,7.24,2248.5,2248.4,4.6029014]
[1750645964561,7.24,2248.5,2248.4,6.04769605]
[1750645966593,1.934,2248.7,2248.4,6.04769605]
[1750645966794,7.239,2248.6,2248.5,4.6637014]
[1750645967781,7.239,2248.6,2248.5,4.6029014]
[1750645968208,7.65507952,2248.6,2248.5,4.6029014]
[1750645968420,8.61398747,2248.6,2248.5,4.6029014]
[1750645968979,8.61414133,2248.6,2248.5,4.6029014]
[1750645969178,7.65523338,2248.6,2248.5,4.6029014]
[1750645969411,17.239,2248.6,2248.5,4.6029014]
[1750645969587,17.65525031,2248.6,2248.5,4.6029014]
[1750645969788,10.36624722,2248.6,2248.5,4.6029014]
[1750645971117,17.60425203,2248.6,2248.5,4.6029014]
[1750645971315,17.188,2248.6,2248.5,4.6029014]
[1750645971482,17.60430975,2248.6,2248.5,4.6029014]
[1750645971678,17.60430975,2248.6,2248.0,4.6029014]
[1750645971880,0.41630975,2248.5,2248.0,4.6029014]
[1750645972089,0.41630975,2248.4,2248.0,4.6029014]
[1750645972289,0.41630975,2248.3,2248.0,4.6029014]
[1750645972485,9.169,2248.2,2248.0,4.6029014]
[1750645972681,9.169,2248.2,2248.1,4.6029014]
[1750645973185,9.58546741,2248.2,2248.1,4.6029014]
[1750645973421,9.58546747,2248.2,2248.1,4.6029014]
[1750645973718,9.169,2248.2,2248.1,4.6029014]
[1750645973898,9.58552791,2248.2,2248.1,4.6029014]
[1750645974719,9.169,2248.2,2248.1,4.6029014]
[1750645975025,9.58552744,2248.2,2248.1,4.6029014]
[1750645975224,9.169,2248.2,2248.1,4.6029014]
[1750645975521,9.5855305,2248.2,2248.0,4.6029014]
[1750645975724,9.5855305,2248.2,2246.9,0.22598635]
[1750645975725,17.4789463,2248.1,2247.7,4.6029014]
[1750645975889,0.41673029,2248.0,2247.7,4.6029014]
[1750645976089,7.65473029,2247.9,2247.7,4.6029014]
[1750645976288,0.41673029,2247.8,2247.7,4.6029014]
[1750645976716,0.41642971,2247.8,2247.7,4.6029014]
[1750645977339,0.41643754,2247.8,2247.7,4.6029014]
[1750645977701,0.41643834,2247.8,2247.7,4.6029014]
[1750645978033,0.41643777,2247.8,2247.7,4.6029014]
[1750645978555,9.17,2247.8,2247.7,5.13007154]
[1750645978712,9.58637365,2247.8,2247.7,5.13007154]
[1750645978912,9.58637283,2247.8,2247.7,4.6637014]
[1750645979137,9.58637314,2247.8,2247.7,4.6637014]
[1750645979315,9.58637313,2247.8,2247.7,4.6637014]
[1750645980113,9.17,2247.8,2247.7,4.6029014]
[1750645980310,9.58638172,2247.8,2247.7,4.6029014]
[1750645980618,9.58621365,2247.8,2247.7,4.6029014]
[1750645981335,9.17,2247.8,2247.7,4.6029014]
[1750645981536,9.58515164,2247.8,2247.7,4.6029014]
[1750645981741,9.58512503,2247.8,2247.7,4.6029014]
[1750645982145,10.0,2248.5,2247.7,5.13007154]
[1750645982347,9.58512518,2248.4,2247.7,4.6637014]
[1750645982528,0.41612518,2248.3,2247.7,4.6637014]
[1750645982727,9.169,2248.4,2247.8,0.0608]
[1750645982728,0.41612518,2248.2,2247.8,0.0608]
[1750645983053,0.41607551,2248.1,2247.7,5.4136014]
[1750645983356,7.238,2248.0,2247.8,0.0608]
[1750645983556,7.238,2248.0,2247.9,0.0608]
[1750645985026,7.238,2248.0,2247.9,4.6637014]
[1750645986559,7.238,2248.0,2247.9,4.6029014]
[1750645986927,7.238,2248.0,2247.9,4.6637014]
[1750645987540,7.238,2248.0,2247.9,0.0608]
[1750645987541,7.65406624,2248.0,2247.9,0.0608]
[1750645987965,7.238,2248.0,2247.9,0.0608]
[1750645988265,7.238,2248.0,2247.8,4.6029014]
[1750645988559,1.931,2247.9,2247.8,4.6029014]
[1750645988862,1.931,2247.9,2247.8,5.06927154]
[1750645990366,1.931,2247.9,2247.8,4.6029014]
[1750645991270,1.931,2247.9,2247.4,4.6637014]
[1750645991574,1.931,2247.9,2247.5,0.0608]
[1750645991871,1.931,2247.9,2247.4,4.6029014]
[1750645992071,1.931,2247.9,2247.5,0.0608]
[1750645992277,1.931,2247.9,2247.6,0.0608]
[1750645993346,1.931,2247.9,2247.4,4.6029014]
[1750645993544,0.41604583,2247.8,2247.4,4.6029014]
[1750645993746,7.47826184,2247.7,2247.2,4.6029014]
[1750645993945,11.931,2247.9,2247.0,4.6029014]
[1750645993946,7.06221601,2247.5,2247.0,4.6029014]
[1750645994242,11.33187201,2247.4,2246.9,4.6029014]
[1750645994575,11.33187201,2247.4,2247.0,4.6029014]
[1750645994576,0.41604583,2247.3,2247.0,4.6029014]
[1750645994756,0.41618614,2247.2,2247.0,4.6029014]
[1750645995077,10.91582618,2247.4,2247.0,4.6029014]
[1750645995257,0.41619577,2247.3,2247.0,4.6029014]
[1750645995452,0.41651282,2247.2,2247.0,4.6029014]
[1750645995776,0.41651131,2247.1,2247.0,4.6029014]
[1750645995976,0.41651149,2247.1,2247.0,4.6029014]
[1750645996141,0.41651149,2247.2,2247.0,4.6029014]
[1750645996347,1.08661781,2247.3,2247.0,4.6029014]
[1750645996548,0.4156293,2247.2,2247.0,4.6029014]
[1750645996749,1.08661781,2247.3,2247.0,4.6029014]
[1750645996949,0.41563099,2247.2,2247.0,4.6029014]
[1750645997168,1.08661781,2247.3,2247.0,4.6029014]
[1750645997369,0.4156295,2247.2,2247.0,4.6029014]
[1750645997565,9.168,2247.4,2247.0,4.6029014]
[1750645997761,0.4156192,2247.3,2247.0,4.6029014]
[1750645997997,9.168,2247.4,2247.0,4.6029014]
[1750645998198,9.5816108,2247.3,2247.0,4.6644014]
[1750645998403,9.166,2247.3,2247.0,4.6644014]
[1750645998705,0.41570995,2247.2,2247.0,4.6644014]
[1750645998909,9.166,2247.3,2247.0,4.6644014]
[1750645999082,0.41570752,2247.2,2247.0,4.6644014]
[1750645999408,9.166,2247.3,2247.0,4.6644014]
[1750646001674,9.166,2247.3,2247.1,0.0615]